bitfinex/quotes_SOLUSD_20251025
["timestamp","ask_amount","ask_price","bid_price","bid_amount"]
[1761425799524,35.58,194.59,194.55,5.14006682]
[1761425799710,35.58,194.59,194.55,6.901098]
[1761425799910,35.58,194.59,194.56,0.71]
[1761425800721,35.58,194.59,194.54,1.76103118]
[1761425800722,2.44103118,194.58,194.54,0.71]
[1761425801034,1.76103118,194.56,194.52,23.59]
[1761425801222,35.58,194.55,194.52,0.71]
[1761425801533,35.58,194.55,194.53,0.71]
[1761425803018,35.58,194.55,194.53,5.85059175]
[1761425803527,35.58,194.55,194.52,5.14084962]
[1761425804227,39.00788372,194.55,194.52,5.14084962]
[1761425804618,2.74788372,194.53,194.48,0.71]
[1761425804823,38.32788372,194.52,194.48,5.8518757]
[1761425805230,38.32788372,194.52,194.49,0.71]
[1761425807025,39.00788372,194.52,194.48,5.8518757]
[1761425807241,36.26,194.52,194.49,0.71]
[1761425807425,39.00788372,194.52,194.49,0.71]
[1761425808338,3.42788372,194.51,194.47,12.78904802]
[1761425808547,3.42788372,194.51,194.47,18.64116937]
[1761425809047,3.42788372,194.51,194.47,17.93116937]
[1761425809249,2.74788372,194.51,194.48,0.71]
[1761425810450,2.74788372,194.52,194.48,5.8516995]
[1761425810656,35.58,194.5,194.48,5.8516995]
[1761425813821,35.58,194.5,194.48,5.1416995]
[1761425814041,36.27,194.5,194.48,5.1416995]
[1761425814632,35.58,194.5,194.48,5.8116995]
[1761425814943,2.74788372,194.53,194.49,0.67]
[1761425815128,35.58,194.52,194.49,0.67]
[1761425815834,35.58,194.52,194.5,5.14138817]
[1761425816546,35.58,194.52,194.5,5.81138817]
[1761425817229,2.74788372,194.54,194.51,0.67]
[1761425817428,39.04012832,194.53,194.51,0.67]
[1761425817629,35.58,194.53,194.51,0.67]
[1761425818238,3.46063533,194.52,194.51,5.81109686]
[1761425821156,35.58,194.53,194.51,5.81109686]
[1761425821460,3.46138367,194.52,194.51,5.81109686]
[1761425821661,6.20926739,194.52,194.49,5.14159781]
[1761425821954,3.46788372,194.51,194.47,12.78904802]
[1761425822136,38.32788372,194.5,194.47,12.78904802]
[1761425822330,38.32788372,194.5,194.47,13.47904802]
[1761425823452,38.32788372,194.5,194.47,18.62100431]
[1761425823642,38.32788372,194.5,194.47,17.93100431]
[1761425823843,35.58,194.5,194.48,5.83172596]
[1761425828742,35.58,194.5,194.48,5.14172596]
[1761425829044,35.58,194.5,194.48,5.83172596]
[1761425834064,2.74788372,194.51,194.48,5.83172596]
[1761425834360,35.58,194.5,194.49,5.83165252]
[1761425834750,35.58,194.5,194.49,5.14165252]
[1761425835756,2.74788372,194.51,194.49,5.14165252]
[1761425835961,35.58,194.5,194.49,0.69]
[1761425836255,35.58,194.5,194.48,5.1419169]
[1761425836638,35.58,194.5,194.48,5.8319169]
[1761425836964,35.58,194.5,194.49,0.69]
[1761425837565,35.58,194.5,194.48,5.8319169]
[1761425837858,35.58,194.5,194.48,5.1419169]
[1761425838267,35.58,194.5,194.48,5.8319169]
[1761425838947,35.58,194.5,194.48,5.1419169]
[1761425839147,35.58,194.5,194.49,5.83165252]
[1761425839457,39.0428364,194.5,194.49,5.83165252]
[1761425843044,39.0428364,194.5,194.48,5.8319169]
[1761425843245,35.58,194.5,194.48,5.8319169]
[1761425849076,3.46757667,194.49,194.48,5.8319169]
[1761425849376,39.04757667,194.49,194.48,5.8319169]
[1761425855469,39.04757667,194.49,194.48,5.1419169]
[1761425855660,39.04757667,194.49,194.48,5.8319169]
[1761425855862,39.04757667,194.49,194.48,5.1419169]
[1761425856261,39.04757667,194.49,194.48,5.8319169]
[1761425858589,46.62730663,214.13,194.48,5.8319169]
[1761425858590,4.32672959,194.56,194.48,21.43459288]
[1761425858769,39.04888567,194.55,194.52,2.74788372]
[1761425858960,3.46888567,194.54,194.52,2.74788372]
[1761425859169,4.32672959,194.56,194.53,0.69]
[1761425859372,39.04800236,194.55,194.53,0.69]
[1761425859565,3.46800236,194.54,194.53,8.578479]
[1761425862487,3.46800236,194.54,194.53,5.83059528]
[1761425862715,39.02800236,194.54,194.53,5.83059528]
[1761425863623,3.46800236,194.54,194.53,5.83059528]
[1761425863794,39.02800236,194.54,194.53,5.83059528]
[1761425877824,39.02800236,194.54,194.51,5.14112384]
[1761425878028,3.46800236,194.53,194.51,5.14112384]
[1761425878231,39.02800236,194.52,194.51,6.89963638]
[1761425878823,39.02800236,194.52,194.51,7.61963638]
[1761425881726,3.46800236,194.52,194.51,7.61963638]
[1761425881921,4.32672959,194.59,194.51,27.50649616]
[1761425882111,39.88672959,194.58,194.55,1.75851254]
[1761425882433,39.88672959,194.58,194.52,0.66]
[1761425882434,39.88672959,194.58,194.56,1.75851254]
[1761425882938,35.56,194.58,194.56,1.75851254]
[1761425883449,35.56,194.58,194.56,6.89817438]
[1761425883944,35.56,194.58,194.56,5.13966184]
[1761425890938,35.56,194.58,194.56,5.79966184]
[1761425893856,3.46344056,194.57,194.56,5.79966184]
[1761425894244,3.46344056,194.57,194.56,7.55817438]
[1761425898765,39.02344056,194.57,194.56,7.55817438]
[1761425900344,3.46344056,194.57,194.56,7.55817438]
[1761425900656,39.02344056,194.57,194.56,7.55817438]
[1761425902372,39.02344056,194.57,194.56,5.79966184]
[1761425904955,39.02344056,194.57,194.56,5.13966184]
[1761425905159,39.02344056,194.57,194.56,7.60817438]
[1761425913999,39.02344056,194.57,194.56,5.84966184]
[1761425914280,39.02344056,194.57,194.56,5.13966184]
[1761425914670,39.02344056,194.57,194.56,5.84966184]
[1761425915280,39.02344056,194.57,194.56,7.60817438]
[1761425915985,39.00344056,194.57,194.56,5.84966184]
[1761425916192,39.00344056,194.57,194.56,7.60817438]
[1761425916891,39.00344056,194.57,194.56,5.84966184]
[1761425917060,39.00344056,194.57,194.55,8.65668692]
[1761425917266,3.46344056,194.56,194.55,14.50675374]
[1761425917888,3.46344056,194.56,194.55,12.7482412]
[1761425918088,39.00344056,194.56,194.55,14.50675374]
[1761425918287,0.2,194.6,194.55,27.35692079]
[1761425918495,0.2,194.6,194.59,1.75851254]
[1761425918698,0.2,194.6,194.59,12.63602403]
[1761425919074,0.2,194.6,194.59,28.05582819]
[1761425919572,35.74,194.6,194.59,11.92602403]
[1761425920386,35.74,194.6,194.59,15.30652171]
[1761425927294,35.74,194.6,194.59,18.05240853]
[1761425927486,35.74,194.6,194.59,10.16751149]
[1761425927487,36.43,194.6,194.59,10.16751149]
[1761425927690,39.17588682,194.6,194.59,10.16751149]
[1761425927891,55.19110817,194.6,194.59,9.91751149]
[1761425928297,59.51783776,194.6,194.59,9.91751149]
[1761425928792,10.87647521,194.59,194.49,8.59740968]
[1761425928978,2.74588682,194.55,194.49,5.85152286]
[1761425929178,35.54,194.54,194.49,5.85152286]
[1761425929388,36.13,194.54,194.49,8.59740968]
[1761425929586,0.59,194.53,194.49,5.85152286]
[1761425929788,0.59,194.53,194.49,8.59740968]
[1761425930581,0.59,194.55,194.5,3.46588682]
[1761425930780,35.54,194.54,194.5,3.46588682]
[1761425930980,35.54,194.54,194.51,0.72]
[1761425931378,35.54,194.54,194.4,0.72]
[1761425931379,10.87647521,194.49,194.4,0.72]
[1761425931590,2.74588682,194.43,194.4,0.72]
[1761425931799,35.58,194.42,194.4,0.72]
[1761425932008,35.58,194.41,194.4,0.72]
[1761425932382,10.87647521,194.49,194.4,8.6099193]
[1761425932581,0.59,194.47,194.42,2.74588682]
[1761425933094,0.59,194.47,194.42,0.72]
[1761425933401,0.59,194.47,194.42,3.46588682]
[1761425934013,10.87647521,194.42,194.38,0.2]
[1761425934192,38.32588682,194.41,194.38,0.2]
[1761425934394,38.91588682,194.41,194.38,0.2]
[1761425934599,0.59,194.4,194.38,0.2]
[1761425935606,42.35628722,194.39,194.38,0.2]
[1761425935783,45.10217404,194.39,194.33,0.2]
[1761425935985,33.75647521,194.31,194.28,0.2]
[1761425936185,72.93161396,194.31,194.28,0.2]
[1761425936384,72.41236203,194.31,194.28,0.2]
[1761425936601,74.47235945,194.31,194.28,0.2]
[1761425937403,43.89877497,194.31,194.28,0.2]
[1761425937601,79.61877497,194.31,194.28,0.2]
[1761425941014,25.62588682,194.31,194.28,0.2]
[1761425941217,35.72,194.31,194.3,0.81]
[1761425942610,35.72,194.31,194.3,0.1]
[1761425942916,38.46588682,194.31,194.3,0.1]
[1761425943695,35.72,194.31,194.3,0.1]
[1761425947399,54.67877755,194.31,194.3,0.1]
[1761425947799,54.48877755,194.31,194.3,0.1]
[1761425948002,54.50877755,194.31,194.3,0.1]
[1761425948224,54.69877755,194.31,194.3,0.1]
[1761425949037,57.38542905,194.31,194.3,0.1]
[1761425951718,54.63954223,194.31,194.3,0.1]
[1761425951904,57.38542905,194.31,194.3,0.1]
[1761425952404,18.89954223,194.31,194.3,0.1]
[1761425952607,57.44542905,194.31,194.3,0.1]
[1761425956431,10.87647521,194.3,194.28,0.2]
[1761425956731,11.06647521,194.3,194.28,0.2]
[1761425956942,49.59236203,194.29,194.28,0.2]
[1761425957303,65.02236203,194.29,194.28,0.2]
[1761425957507,49.59236203,194.29,194.28,0.2]
[1761425958526,54.73930731,194.29,194.28,0.2]
[1761425959219,54.73930731,194.29,194.21,0.2]
[1761425959220,10.87647521,194.24,194.21,0.2]
[1761425959424,49.40236203,194.24,194.21,0.2]
[1761425961046,54.55063221,194.24,194.21,0.2]
[1761425963943,54.74063221,194.24,194.21,0.2]
[1761425965415,54.55063221,194.24,194.21,0.2]
[1761425968228,54.74063221,194.24,194.21,0.2]
[1761425970044,33.75647521,194.22,194.21,0.2]
[1761425970345,72.49236203,194.22,194.21,0.2]
[1761425971317,77.64116235,194.22,194.21,0.2]
[1761425972017,10.87647521,194.21,194.2,0.2]
[1761425972220,17.2272286,194.21,194.2,0.2]
[1761425972524,10.87647521,194.14,194.12,0.81]
[1761425972829,38.54588682,194.13,194.12,0.81]
[1761425973428,43.69707416,194.13,194.12,0.81]
[1761425977844,22.88,194.15,194.12,0.81]
[1761425978052,35.84,194.14,194.12,5.96141422]
[1761425978238,35.84,194.14,194.12,0.81]
[1761425978434,35.84,194.14,194.13,0.71]
[1761425978658,2.74588682,194.17,194.13,0.71]
[1761425978955,39.27453029,194.16,194.13,0.71]
[1761425979255,35.84,194.16,194.13,0.71]
[1761425979453,6.12614628,194.15,194.13,0.71]
[1761425979632,35.86,194.14,194.13,0.71]
[1761425980228,25.62588682,194.18,194.13,5.86107106]
[1761425980444,39.29721057,194.17,194.14,0.71]
[1761425980653,2.74588682,194.19,194.14,0.71]
[1761425980654,3.43721057,194.16,194.14,0.71]
[1761425980957,35.86,194.15,194.14,0.71]
[1761425981129,2.68817262,194.19,194.14,3.45588682]
[1761425981331,39.30148047,194.18,194.16,2.74588682]
[1761425981557,3.44148047,194.17,194.16,2.74588682]
[1761425981728,3.44148047,194.17,194.16,7.89627824]
[1761425981933,35.86,194.18,194.16,7.89627824]
[1761425982135,35.86,194.18,194.17,2.74588682]
[1761425982447,35.86,194.18,194.17,0.71]
[1761425982964,35.86,194.19,194.17,3.45588682]
[1761425983159,35.86,194.19,194.18,2.74588682]
[1761425983469,39.30205646,194.19,194.18,3.45588682]
[1761425983667,39.30205646,194.19,194.18,0.71]
[1761425985164,35.86,194.19,194.18,0.71]
[1761425985351,38.60588682,194.19,194.18,0.71]
[1761425985554,42.04761903,194.19,194.18,0.71]
[1761425985768,39.30173221,194.19,194.18,0.71]
[1761425986471,35.86,194.19,194.18,0.71]
[1761425989262,37.62537844,194.19,194.18,0.71]
[1761425989461,35.86,194.19,194.18,0.71]
[1761425990667,37.62537844,194.19,194.13,5.15096966]
[1761425990969,1.76537844,194.18,194.16,0.7]
[1761425991749,1.76537844,194.18,194.14,0.7]
[1761425991969,1.76537844,194.16,194.14,0.7]
[1761425992167,37.62537844,194.15,194.14,0.7]
[1761425992473,35.86,194.15,194.14,0.7]
[1761425992672,37.62537844,194.15,194.14,0.7]
[1761425993776,35.86,194.15,194.14,0.7]
[1761426000164,1.76537844,194.16,194.14,0.7]
[1761426000391,35.84,194.19,194.14,7.61623399]
[1761426000685,35.84,194.19,194.15,0.7]
[1761426001479,35.84,194.19,194.15,5.8505861]
[1761426001990,35.84,194.19,194.16,0.7]
[1761426002710,35.9,194.18,194.16,0.7]
[1761426002901,2.68782502,194.22,194.16,0.7]
[1761426003384,35.9,194.21,194.17,6.91550461]
[1761426003779,35.9,194.21,194.18,0.7]
[1761426004596,35.9,194.21,194.18,2.46537844]
[1761426004899,2.68782502,194.22,194.19,1.76537844]
[1761426005108,17.78979092,194.26,194.2,1.76537844]
[1761426005109,35.9,194.21,194.2,1.76537844]
[1761426005282,35.9,194.21,194.2,2.46537844]
[1761426005471,2.68720438,194.26,194.21,5.14906544]
[1761426005672,39.34854014,194.25,194.21,7.61444388]
[1761426005885,3.44854014,194.24,194.22,0.7]
[1761426006071,39.34854014,194.24,194.22,0.7]
[1761426006269,35.9,194.24,194.22,0.7]
[1761426008316,35.9,194.24,194.22,5.84869471]
[1761426008487,2.68720438,194.26,194.23,1.76537844]
[1761426008671,35.9,194.25,194.24,2.46537844]
[1761426009003,35.9,194.26,194.24,2.46537844]
[1761426009302,4.29316222,194.3,194.25,7.61338358]
[1761426009303,2.68664217,194.29,194.25,7.61338358]
[1761426009474,39.3509152,194.28,194.26,0.7]
[1761426009669,3.4509152,194.27,194.26,0.7]
[1761426011505,3.4509152,194.27,194.21,12.87221157]
[1761426011802,3.4509152,194.26,194.23,0.7]
[1761426012099,39.3509152,194.25,194.23,0.7]
[1761426012310,3.4509152,194.24,194.23,0.7]
[1761426015995,3.4509152,194.24,194.21,0.7]
[1761426016188,3.4509152,194.23,194.21,0.7]
[1761426016372,35.88,194.22,194.21,0.7]
[1761426018696,39.33569105,194.22,194.21,0.7]
[1761426019703,39.33569105,194.22,194.19,5.84957933]
[1761426019885,35.88,194.22,194.2,0.7]
[1761426021106,35.88,194.22,194.2,2.46537844]
[1761426021303,35.88,194.22,194.2,0.7]
[1761426021498,35.88,194.22,194.21,0.69]
[1761426021697,39.33657061,194.22,194.21,0.69]
[1761426023087,39.33657061,194.22,194.2,5.14914251]
[1761426023300,35.88,194.22,194.2,5.83914251]
[1761426023502,35.88,194.22,194.21,0.69]
[1761426023704,39.33775861,194.22,194.21,0.69]
[1761426024588,35.88,194.22,194.21,0.69]
[1761426028927,35.84,194.22,194.21,5.83906269]
[1761426030305,35.84,194.22,194.18,23.89683869]
[1761426030506,35.84,194.22,194.21,0.69]
[1761426030816,39.2966686,194.22,194.21,0.69]
[1761426031195,35.84,194.22,194.21,0.69]
[1761426035699,39.29675053,194.22,194.21,0.69]
[1761426037217,39.29675053,194.22,194.19,5.14954257]
[1761426037417,35.84,194.22,194.2,0.69]
[1761426038511,35.84,194.22,194.2,5.83915175]
[1761426038710,35.84,194.22,194.21,0.69]
[1761426038912,24.64537844,194.27,194.21,0.69]
[1761426039117,39.27675219,194.26,194.21,0.69]
[1761426039323,3.45675219,194.25,194.21,0.69]
[1761426039627,3.45675219,194.24,194.21,0.69]
[1761426039806,43.65488904,194.26,194.21,0.69]
[1761426039807,39.27675219,194.23,194.21,0.69]
[1761426040007,35.82,194.23,194.21,0.69]
[1761426040615,3.4578847,194.22,194.21,0.69]
[1761426043609,3.4578847,194.22,194.18,11.71269156]
[1761426043808,3.4578847,194.21,194.19,0.69]
[1761426044025,35.8,194.2,194.19,0.69]
[1761426044224,39.26386609,194.2,194.19,0.69]
[1761426046135,3.46386609,194.2,194.19,0.69]
[1761426046322,39.26386609,194.2,194.19,0.69]
[1761426047512,39.26386609,194.2,194.18,16.86252334]
[1761426047713,3.46386609,194.19,194.18,16.17252334]
[1761426048336,3.46386609,194.19,194.18,16.86252334]
[1761426048535,39.26386609,194.19,194.18,16.86252334]
[1761426052544,3.46386609,194.19,194.18,16.86252334]
[1761426052837,39.24386609,194.19,194.18,16.86252334]
[1761426053235,39.24386609,194.19,194.16,0.7]
[1761426053546,3.46386609,194.18,194.16,0.7]
[1761426053753,3.46386609,194.17,194.16,0.7]
[1761426054057,3.46386609,194.17,194.14,5.85092201]
[1761426054344,35.78,194.16,194.15,0.7]
[1761426056052,35.78,194.16,194.15,5.8506567]
[1761426060647,2.75746592,194.19,194.15,5.8506567]
[1761426060848,39.24625952,194.18,194.16,0.66]
[1761426061162,39.24625952,194.17,194.16,0.66]
[1761426061655,39.24625952,194.17,194.16,5.81039142]
[1761426062933,39.22625952,194.17,194.16,5.81039142]
[1761426063950,3.46625952,194.17,194.16,5.81039142]
[1761426064135,39.22625952,194.17,194.16,5.81039142]
[1761426068235,2.74625952,194.17,194.16,5.81039142]
[1761426068435,4.29316222,194.24,194.19,22.88]
[1761426068742,4.29316222,194.24,194.19,25.63746592]
[1761426068936,4.29316222,194.24,194.2,0.66]
[1761426069141,35.8,194.23,194.21,5.14906544]
[1761426069525,35.8,194.23,194.22,0.66]
[1761426070149,35.8,194.23,194.22,5.80880032]
[1761426078646,35.8,194.23,194.2,18.68220741]
[1761426078848,35.8,194.23,194.21,0.66]
[1761426080372,3.46471928,194.22,194.21,5.80906544]
[1761426081060,3.46471928,194.22,194.21,5.14906544]
[1761426081288,3.46471928,194.22,194.19,22.88]
[1761426081289,6.2221852,194.22,194.19,0.69]
[1761426081470,6.2221852,194.21,194.19,0.69]
[1761426081643,39.22471928,194.2,194.19,0.69]
[1761426083268,39.22471928,194.2,194.17,0.69]
[1761426083461,35.76,194.2,194.18,0.69]
[1761426085384,3.46469828,194.19,194.18,0.69]
[1761426086851,3.46469828,194.19,194.18,5.83986095]
[1761426087377,3.46469828,194.19,194.18,5.14986095]
[1761426087582,3.46469828,194.19,194.18,5.83986095]
[1761426088049,3.46469828,194.19,194.18,5.14986095]
[1761426088254,3.46469828,194.19,194.17,5.15012617]
[1761426088468,35.74,194.18,194.17,5.15012617]
[1761426088667,35.74,194.18,194.17,5.84012617]
[1761426093276,39.20448159,194.18,194.17,5.84012617]
[1761426094752,39.20448159,194.18,194.16,5.15039142]
[1761426094962,35.74,194.18,194.16,5.84039142]
[1761426095174,35.74,194.18,194.17,0.69]
[1761426095373,39.20443109,194.18,194.17,0.69]
[1761426096164,39.20443109,194.18,194.17,5.84012617]
[1761426096362,39.20443109,194.18,194.16,5.15034978]
[1761426096563,36.45,194.18,194.16,5.15034978]
[1761426096762,35.74,194.18,194.16,5.15034978]
[1761426097062,3.46424461,194.17,194.16,5.15034978]
[1761426097564,3.46424461,194.17,194.15,5.1506567]
[1761426097768,35.74,194.18,194.15,5.8406567]
[1761426097968,3.46414204,194.17,194.15,5.1506567]
[1761426098179,35.74,194.18,194.16,0.69]
[1761426098379,3.4640656,194.17,194.15,5.8406567]
[1761426098564,35.74,194.18,194.15,5.8406567]
[1761426098764,3.46406507,194.17,194.15,5.8406567]
[1761426098971,35.74,194.18,194.15,5.8406567]
[1761426099184,3.46406507,194.17,194.15,5.8406567]
[1761426099465,35.74,194.18,194.15,5.8406567]
[1761426099781,3.46408213,194.17,194.15,5.8406567]
[1761426099982,35.74,194.18,194.15,5.8406567]
[1761426100164,3.46408097,194.17,194.13,5.15118734]
[1761426100372,3.4639187,194.16,194.13,5.84118734]
[1761426100572,39.20746592,194.18,194.14,0.69]
[1761426100765,3.46391884,194.17,194.14,0.69]
[1761426101079,3.46391884,194.16,194.14,0.69]
[1761426101283,36.45,194.18,194.14,0.69]
[1761426101473,3.46373679,194.17,194.14,0.69]
[1761426101783,3.46373679,194.16,194.15,5.1506567]
[1761426102284,3.46373679,194.16,194.15,5.8406567]
[1761426103478,3.46373679,194.16,194.14,0.69]
[1761426103685,3.46373679,194.15,194.14,0.69]
[1761426104591,39.20746592,194.18,194.14,0.69]
[1761426104775,3.46283832,194.17,194.15,5.1506567]
[1761426104975,3.46283832,194.16,194.15,5.1506567]
[1761426105293,3.46283832,194.16,194.15,5.8406567]
[1761426116591,35.74,194.18,194.15,5.8406567]
[1761426116799,3.46048507,194.17,194.15,5.8406567]
[1761426116982,35.74,194.18,194.15,5.8406567]
[1761426117299,3.46047694,194.17,194.15,5.8406567]
[1761426117505,35.74,194.18,194.15,5.8406567]
[1761426117796,3.46054766,194.17,194.15,5.8406567]
[1761426117999,35.74,194.18,194.15,5.8406567]
[1761426118200,3.46055412,194.17,194.15,5.8406567]
[1761426118508,36.42,194.18,194.15,5.8406567]
[1761426118680,3.46066028,194.17,194.15,5.8406567]
[1761426118880,35.74,194.18,194.15,5.8406567]
[1761426119107,3.46066016,194.17,194.15,5.8406567]
[1761426119399,35.74,194.18,194.15,5.8406567]
[1761426119589,3.46079946,194.17,194.15,5.8406567]
[1761426119784,35.74,194.18,194.15,5.8406567]
[1761426119991,3.46079946,194.17,194.15,5.8406567]
[1761426120188,35.74,194.18,194.15,5.8406567]
[1761426120387,3.46099439,194.17,194.15,5.8406567]
[1761426120611,35.74,194.18,194.15,5.8406567]
[1761426120785,3.46075006,194.17,194.15,5.8406567]
[1761426120985,35.74,194.18,194.15,5.8406567]
[1761426121196,35.74,194.18,194.12,0.1]
[1761426121197,5.89640036,194.17,194.12,0.1]
[1761426121400,5.22640036,194.16,194.12,0.1]
[1761426121715,39.16075006,194.15,194.13,5.1511645]
[1761426122005,3.46075006,194.14,194.12,0.1]
[1761426122186,3.46075006,194.13,194.12,0.1]
[1761426122395,5.89640036,194.13,194.12,0.1]
[1761426123786,21.92406291,194.13,194.12,0.1]
[1761426127980,3.46075006,194.13,194.12,0.82]
[1761426128410,3.46075006,194.13,194.12,5.9714527]
[1761426128704,35.72,194.14,194.12,7.737103]
[1761426129009,35.72,194.15,194.13,2.4856503]
[1761426129408,35.72,194.15,194.14,0.72]
[1761426131300,35.72,194.16,194.14,7.63651387]
[1761426131494,35.72,194.16,194.14,5.87086357]
[1761426131701,35.72,194.16,194.15,0.72]
[1761426139424,46.75841357,194.16,194.12,0.1]
[1761426139718,1.7656503,194.14,194.12,0.1]
[1761426140014,35.72,194.13,194.12,0.1]
[1761426142020,2.4556503,194.15,194.12,0.1]
[1761426142210,39.17269602,194.14,194.12,0.1]
[1761426142406,35.72,194.14,194.12,0.1]
[1761426143106,35.72,194.14,194.13,0.71]
[1761426143309,39.17285113,194.14,194.12,5.96143574]
[1761426143509,35.72,194.14,194.12,5.96143574]
[1761426145627,35.72,194.14,194.12,5.25143574]
[1761426146022,1.7656503,194.18,194.13,0.71]
[1761426146328,27.17316222,194.19,194.13,0.71]
[1761426146329,39.17397295,194.17,194.13,2.4756503]
[1761426146527,24.6456503,194.19,194.13,2.4756503]
[1761426146528,1.7656503,194.19,194.13,2.4756503]
[1761426146727,39.17413913,194.18,194.14,2.4756503]
[1761426146918,3.45413913,194.17,194.14,0.71]
[1761426147118,35.72,194.18,194.15,0.71]
[1761426147321,3.45419414,194.17,194.15,0.71]
[1761426147528,35.72,194.18,194.15,0.71]
[1761426147831,3.45419368,194.17,194.15,0.71]
[1761426148042,35.72,194.18,194.15,0.71]
[1761426148216,3.45406637,194.17,194.15,0.71]
[1761426148534,35.72,194.18,194.14,5.15068156]
[1761426148830,3.45415567,194.17,194.14,5.15068156]
[1761426149022,35.72,194.18,194.15,0.71]
[1761426149221,3.45413035,194.17,194.15,0.71]
[1761426149422,35.72,194.18,194.15,0.71]
[1761426149624,3.45421528,194.17,194.15,0.71]
[1761426149921,35.72,194.18,194.15,0.71]
[1761426150121,3.45421528,194.17,194.15,0.71]
[1761426150328,35.72,194.18,194.15,0.71]
[1761426150512,3.45427853,194.17,194.15,0.71]
[1761426150714,35.72,194.18,194.15,0.71]
[1761426151011,3.45427853,194.17,194.15,0.71]
[1761426151212,35.72,194.18,194.15,5.86064407]
[1761426151437,3.45434532,194.17,194.15,5.86064407]
[1761426151621,35.72,194.18,194.15,5.86064407]
[1761426151822,3.45434531,194.17,194.15,5.86064407]
[1761426152137,35.72,194.18,194.15,5.86064407]
[1761426152312,3.4544118,194.17,194.15,5.86064407]
[1761426152612,35.72,194.18,194.15,5.86064407]
[1761426152813,3.4544118,194.17,194.15,5.86064407]
[1761426153036,35.72,194.18,194.15,5.86064407]
[1761426153222,3.4544001,194.17,194.15,5.86064407]
[1761426153424,35.72,194.18,194.15,5.86064407]
[1761426153722,3.45447877,194.17,194.15,5.86064407]
[1761426153924,35.72,194.18,194.15,5.86064407]
[1761426154235,3.45447877,194.17,194.15,5.86064407]
[1761426154419,35.72,194.18,194.15,5.86064407]
[1761426154619,3.45454661,194.17,194.15,5.86064407]
[1761426154819,35.72,194.18,194.15,5.86064407]
[1761426155020,3.45454661,194.17,194.15,5.86064407]
[1761426155221,35.72,194.18,194.15,5.86064407]
[1761426155434,3.45461577,194.17,194.15,5.86064407]
[1761426155633,35.72,194.18,194.15,5.86064407]
[1761426155942,3.45461577,194.17,194.15,5.86064407]
[1761426156240,35.72,194.18,194.15,5.86064407]
[1761426156425,3.45468585,194.17,194.15,5.86064407]
[1761426156628,35.72,194.18,194.15,5.86064407]
[1761426156828,3.45468585,194.17,194.15,5.86064407]
[1761426157030,35.72,194.18,194.15,5.86064407]
[1761426157231,3.45463519,194.17,194.15,5.86064407]
[1761426157431,35.72,194.18,194.15,5.86064407]
[1761426157737,3.45475643,194.17,194.15,5.86064407]
[1761426157918,35.72,194.18,194.15,5.86064407]
[1761426158121,3.45475643,194.17,194.15,5.86064407]
[1761426158321,2.68797166,194.19,194.16,2.4756503]
[1761426158544,2.68797166,194.19,194.18,1.7656503]
[1761426159044,2.68797166,194.19,194.18,2.4756503]
[1761426161330,2.68797166,194.19,194.18,0.71]
[1761426166551,2.68797166,194.19,194.18,5.85986095]
[1761426167546,2.68797166,194.19,194.18,8.61719975]
[1761426174753,45.26936912,194.19,194.13,0.69]
[1761426174928,4.12405866,194.18,194.13,0.69]
[1761426175128,0.67,194.18,194.13,0.69]
[1761426175356,0.67,194.17,194.13,5.15118734]
[1761426175563,35.7,194.16,194.14,0.69]
[1761426175868,35.7,194.15,194.14,14.38749408]
[1761426176032,35.7,194.16,194.14,14.38749408]
[1761426177366,35.7,194.16,194.14,13.69749408]
[1761426177529,4.12380387,194.15,194.14,13.69749408]
[1761426182938,6.14531046,194.19,194.14,14.35749408]
[1761426183137,39.15377938,194.18,194.15,0.66]
[1761426183356,3.45377938,194.17,194.15,0.66]